Cogmind - Beta 13 @@@ ROGUE MODE // 2024.04.25 @ 00:06:16 Player: Nebula avali Result: Destroyed by G-34 Mercenary with Small Laser Performance ------------- Evolutions (0) 0 Regions Visited (1) 200 Robots Destroyed (4) 20 Value Destroyed (64) 64 Prototype IDs (0) 0 Alien Tech Used (0) 0 Bonus (0) 0 TOTAL SCORE: 284 Bonus ------- None Cogmind --------- Core Integrity 0/250 Matter 300/300 Energy 99/100 System Corruption 0% Temperature Cool (12) Movement Core (150) Ox2 Location -10/Materials Parts ------- > --- POWER (1) -------- (None) > --- PROPULSION (2) --- (None) > --- UTILITY (2) ------ Small Storage Unit Signal Interpreter > --- WEAPON (2) ------- Hammer > --- INVENTORY (8) ---- Ion Engine Wheel Wheel Signal Interpreter Light Armor Plating Light Armor Plating Hammer Hammer Peak State ------------ > --- POWER ------------ Ion Engine > --- PROPULSION ------- Light Treads Light Treads > --- UTILITY ---------- Small Storage Unit Signal Interpreter > --- WEAPON ----------- Assault Rifle Hammer > --- INVENTORY -------- Ion Engine Wheel Wheel Hammer Hammer [Rating: 7] Favorites ----------- Power Ion Engine Engine Ion Engine Propulsion Light Treads Treads Light Treads Leg Aluminum Leg Utility Small Storage Unit Storage Small Storage Unit Processor Signal Interpreter Weapon Assault Rifle Energy Gun EM Pulse Gun Ballistic Gun Assault Rifle Impact Weapon Hammer Slashing Weapon Mining Claw Build | -11 -10 ------- Run | Yrd Mat Slots Evolved . | . . Power . | . . Propulsion . | . . Utility . | . . Weapon . | . . Parts Attached 6 | . 6 Power . | . . Engine . | . . Core . | . . Reactor . | . . Propulsion 2 | . 2 Treads 2 | . 2 Leg . | . . Wheel . | . . Hover . | . . Flight . | . . Utility 1 | . 1 Device . | . . Storage . | . . Processor 1 | . 1 Hackware . | . . Protection . | . . Artifact . | . . Weapon 3 | . 3 Energy Gun . | . . Energy Cannon . | . . Ballistic Gun 1 | . 1 Ballistic Cannon . | . . Launcher . | . . Special Weapon . | . . Impact Weapon 1 | . 1 Slashing Weapon 1 | . 1 Piercing Weapon . | . . Special Melee Weapon . | . . Unidentified Prototypes . | . . Parts Lost 4 | . 4 Power 1 | . 1 Propulsion 2 | . 2 Utility . | . . Weapon 1 | . 1 Highest Loss Streak 4 | . 4 To Critical Strikes . | . . Average Slot Usage (%) 92 | . 92 Engine 13 | . 13 Treads 25 | . 25 Leg 1 | . 1 Storage 14 | . 14 Processor 9 | . 9 Ballistic Gun 13 | . 13 Impact Weapon 9 | . 9 Slashing Weapon 3 | . 3 Naked Turns . | . . Heaviest Build 14 | 14 14 Greatest Support 40 | 20 40 Greatest Overweight (x) 2 | . 2 Average Overweight (x) . | . . Largest Inventory Capacity 8 | . 8 Average Capacity 8 | . 8 Most Carried 8 | . 8 Average Carried 6 | . 6 Final Capacity 8 | 8 8 Final Carried 8 | 6 8 Class Distribution -------------------- 100% | Mutant Dominant Class ---------------- Mutant | -10/Materials Resources | -11 -10 ----------- Run | Yrd Mat Matter Collected 263 | 200 63 Remotely . | . . Salvage Created 87 | . 87 Parts 4 | . 4 Haulers Intercepted . | . . Recyclers Shooed . | . . Parts Field Recycled . | . . Retrieved Matter . | . . Parts Self-Destructed . | . . Prevented . | . . Kills | -11 -10 ------- Run | Yrd Mat Combat Hostiles Destroyed 4 | . 4 Melee 3 | . 3 Classes Destroyed 2 | . 2 Swarmer 3 | . 3 Grunt 1 | . 1 Best Kill Streak 2 | . 2 Combat Bots Only 2 | . 2 Max Kills in Single Turn 1 | . 1 Gunslinging . | . . Exploded . | . . Melee 1 | . 1 Uniques/NPCs Destroyed . | . . Combat | -11 -10 -------- Run | Yrd Mat Hostile Shots Fired 128 | . 128 Missed 34 | . 34 Damage Taken 849 | . 849 Core 253 | . 253 Absorbed by Shields . | . . Core Remaining (%) 100 | 100 . Volleys Fired 1 | . 1 Largest 1 | . 1 Hottest 20 | . 20 Shots Fired 1 | . 1 Gun 1 | . 1 Cannon . | . . Launcher . | . . Special . | . . Kinetic 1 | . 1 Thermal . | . . Explosive . | . . Electromagnetic . | . . Robot Hit Streak . | . . Robot Miss Streak 1 | . 1 Penetration Max . | . . Secondary Targets . | . . Shots Hit Robots 16 | . 16 Core Hits 3 | . 3 Critical Kills . | . . Critical Parts Destroyed 1 | . 1 Critical Strikes 1 | . 1 Smash 1 | . 1 Melee Attacks 35 | . 35 Impact 28 | . 28 Slashing 7 | . 7 Piercing . | . . Sneak Attacks . | . . Combat Hostiles . | . . Follow-up Attacks . | . . Damage Inflicted 424 | . 424 Guns . | . . Cannons . | . . Explosions . | . . Melee 424 | . 424 Ramming . | . . Kinetic . | . . Thermal . | . . Explosive . | . . Electromagnetic . | . . Impact 305 | . 305 Slashing 119 | . 119 Piercing . | . . Highest Corruption . | . . Average Corruption . | . . Corruption Purged . | . . Corruption Blocked . | . . Overload Shots . | . . Overflow Damage 45 | . 45 Projectiles . | . . Explosions . | . . Melee 45 | . 45 Knockbacks . | . . Impact . | . . Kinetic . | . . Secondary . | . . Self-Inflicted Damage . | . . Shots . | . . Rammed . | . . Targets Rammed . | . . Kicked . | . . Crushed . | . . Highest Temperature . | . . Average Temperature . | . . Received Heat Transfer 168 | . 168 Siege Activations . | . . Robots Corrupted . | . . Combat Hostiles . | . . Parts Fried . | . . Impact Corruptions 3 | . 3 Robots Melted . | . . Combat Hostiles . | . . Parts Melted . | . . Heat Transferred . | . . Parts Sabotaged . | . . Parts Stolen . | . . Parts Stripped . | . . Power Chain Reactions . | . . Alert | -11 -10 ------- Run | Yrd Mat Peak Influence 115 | . 115 Initial . | . . Average 57 | . 57 Maximum Alert Level . | . . Low Security (%) 100 | . 100 Level 1 . | . . Level 2 . | . . Level 3 . | . . Level 4 . | . . Level 5 . | . . High Security . | . . Max Security . | . . Squads Dispatched 1 | . 1 Investigation . | . . Extermination . | . . Reinforcement 1 | . 1 Assault . | . . Garrison . | . . Intercept . | . . Searches Triggered . | . . Construction Impeded . | . . Haulers Reinforced . | . . Active Scanning Responses . | . . Cargo Convoy Interrupts . | . . Stealth | -11 -10 --------- Run | Yrd Mat Distress Signals 1 | . 1 Communications Jammed . | . . Distress Signals . | . . Times Spotted 13 | . 13 Peak Tracking Total 7 | . 7 Tactical Retreats 2 | . 2 Traps | -11 -10 ------- Run | Yrd Mat Traps Triggered . | . . Indirectly . | . . Trap Hack Attempts . | . . Triggered . | . . Disarmed . | . . Reprogrammed . | . . Reused . | . . Traps Extracted . | . . Installed . | . . Triggered . | . . Machines | -11 -10 ---------- Run | Yrd Mat Machines Disabled . | . . Max in Single Turn . | . . Machines Repaired . | . . Machines Dismantled . | . . Machines Sabotaged . | . . Overloaded Fab Kills . | . . Hacking | -11 -10 --------- Run | Yrd Mat Machines Accessed 1 | . 1 Terminals 1 | . 1 Fabricators . | . . Repair Stations . | . . Recycling Units . | . . Scanalyzers . | . . Garrison Access . | . . Total Hacks 3 | . 3 Successful . | . . Failed 3 | . 3 Catastrophic . | . . Database Lockouts . | . . Manual 3 | . 3 Terminals 3 | . 3 Fabricators . | . . Repair Stations . | . . Recycling Units . | . . Scanalyzers . | . . Garrison Access . | . . Terminal Hacks . | . . Fabricator Hacks . | . . Repair Station Hacks . | . . Recycling Unit Hacks . | . . Scanalyzer . | . . Garrison Access Hacks . | . . Unauthorized Hacks . | . . Terminals . | . . Fabricators . | . . Repair Stations . | . . Recycling Units . | . . Scanalyzers . | . . Garrison Access . | . . Data Cores Recovered . | . . Used . | . . Hacking Detections 1 | . 1 Full Trace Events . | . . Feedback Events . | . . Feedback Blocked . | . . Robot Schematics Acquired . | . . Robots Built . | . . Authchips . | . . Time . | . . Total Robot Build Rating . | . . Part Schematics Acquired . | . . Parts Built . | . . Authchips . | . . Time . | . . Total Part Build Rating . | . . Parts Repaired . | . . Time . | . . Parts Recycled . | . . Recycled Matter . | . . Retrieved Matter . | . . Retrieved Components . | . . Parts Scanalyzed . | . . Part Schematics Acquired . | . . Parts Damaged . | . . Bothacking | -11 -10 ------------ Run | Yrd Mat Used RIF Installer . | . . Robots Hacked . | . . Non-combat . | . . Combat . | . . Robot Hacks Applied . | . . Relay Couplers Released . | . . Fabnet Peak Effective % . | . . Robots Rewired . | . . Allies Hacked . | . . Hacks Repelled . | . . Allies | -11 -10 -------- Run | Yrd Mat Total Allies . | . . Largest Group . | . . Highest-Rated Group . | . . Highest-Rated Ally . | . . Total Orders . | . . Ally Attacks . | . . Total Damage . | . . Kills . | . . Allies Corrupted . | . . Allies Melted . | . . Intel | -11 -10 ------- Run | Yrd Mat Robot Analysis Total . | . . Derelict Logs Recovered . | . . Drone Launches . | . . Drone Recoveries . | . . Exploration | -11 -10 ------------- Run | Yrd Mat Turns Passed 246 | . 246 Spaces Moved 80 | 1 79 Core 3 | . 3 Treads 70 | . 70 Legs 7 | 1 6 Wheels . | . . Hover . | . . Flight . | . . Fastest Speed 120 | 120 120 Average Speed 156 | 120 156 Slowest Speed 160 | 120 160 Overloaded Moves . | . . Propulsion Burnouts . | . . Robots Hopped . | . . Cave-ins Triggered . | . . Exploration Rate (%) 12 | 2 23 Regions Visited 1 Branch Regions . Pre-discovered Areas . | . . Known Exits Taken . | . . Unknown Exits Taken 1 | 1 . Scrap Searched . | . . Spaces Dug . | . . Terrain Destroyed . | . . Melee . | . . Projectile . | . . AOE . | . . Terrain Rammed . | . . Walls Destroyed . | . . Machines Disabled . | . . Actions | -11 -10 --------- Run | Yrd Mat Total 142 | . 142 Wait 3 | . 3 Move 79 | . 79 Hop . | . . Pick Up 6 | . 6 Fast Attach 4 | . 4 Attach 2 | . 2 Detach 5 | . 5 Swap . | . . Drop 7 | . 7 Fire 1 | . 1 Melee 35 | . 35 Ram . | . . Kick . | . . Crush . | . . Escape Stasis . | . . Rewire . | . . Trap . | . . Miscellaneous . | . . Route ------- -11/Scrapyard -10/Materials (discovered 1 exit: [*Mat]) History --------- Turn | Location | Event 1 | -11/Scrapyard | Discovered new exit (range 0) 1 | -11/Scrapyard | Entered Materials 225 | -10/Materials | Core integrity fell below 50% 240 | -10/Materials | Core integrity fell below 20% 247 | -10/Materials | Discovered new exit (range 11) 247 | -10/Materials | Destroyed by G-34 Mercenary with Small Laser Last Messages --------------- 00167_ Acquired 11 matter. 00171_ K-01 Serf collects debris. 00175_ Connecting with Terminal... 00175_ Current location identified: Materials 00184_ W-16 Scout sends out distress signal. 00186_ K-01 Serf collects debris. 00220_ Destroyed Flight Unit. 00220_ S-10 Pest system corrupted by crushing effect. 00224_ S-10 Pest destroyed. 00229_ K-01 Serf collects debris. 00232_ Ion Engine destroyed. 00233_ Lgt. Treads destroyed. 00234_ K-01 Serf collects debris. 00235_ Assault Rifle destroyed. 00235_ S-10 Pest destroyed. 00236_ Lgt. Treads destroyed. 00239_ K-01 Serf collects debris. 00245_ S-10 Pest destroyed. 00247_ EXIT=FOUND 00247_ K-01 Serf collects debris. Map ----- +----------------------------------------------------+ | ????????????????????????""" #???? | | ???????????????????? """ #???? | | ??????????????????? #???? | | ??????????????????? ##### | | ????????????????????"" """ """ | | ?????????????????????" """ """ | | ??????????????????????? """ """ | | ?????????????????????? """ """ | | ????????????????????? | | ????????????????????? = | | ??????????????????????# | | ??????????????????????# % | | ??????????????????????# | | ??????????????????????# | | ??????????????????????# | | ?????????????????????######### | | ?????????????????????# # | | ?????????????????????# # | | ?????????????????????# "T" %+ | | ?????????????????????# """ # ######## | | ???? ??????????????# # #??????? | | ???# ????????????######### #???????? | | ???# #################?# #???????? | | ???# # #?# #???????? | | ???# < # """ #?# #???????? | | ???# @ # """ #?# #???????? | | ???# #######%= #[ """ #?# #???????? | | ????????????????#% # #?# #???????? | | ????????????????# kg# ???# #???????? | | ????????????????#gg%###+###### #####???? | | ????????????????# [ | | ????????????????# | | ????????????????# | | ????????????????# ####/################## | | ????????????????# #? ???????????????? | | ????????????????# k## #??????????????? | | ????????????????# ## #??????????????? | | ????????????????# ## "" ?#??????????????? | | ????????????????# ?# "Y ????????????????? | | ????????????????# ?# "" ????????????????? | | ????????????????# ?# ?? ????????????????? | | ????????????????# ?##??#????????????????? | | ???????????????? ??????????????????????? | | ???????????????? ???????????????????????? | | ????????????????? ???????????????????????? | | ?????????????????????????????????????????? | | ?????????????????????????????????????????? | | ?????????????????????????????????????????? | | ?????????????????????????????????????????? | | ?????????????????????????????????????????? | +----------------------------------------------------+ Best States ------------- Heat Dissipation 25 Energy Generation 10 Energy Capacity 250 Matter Stores 300 Matter Capacity 300 Sight Range 16 Terrain Scan Density 10 Evasion (%) 45 Recoil Reduction 2 Item Schematics ----------------- None Robot Schematics ------------------ None Fabricated ------------ Nothing Alien Tech Used ----------------- None Achievements -------------- None Challenges ------------ None Game ------ Seed PrecisionShadeBattery Manual? 1 Play Time 00:04:13 Cumulative 51.5 hours Start 2024.04.25 @ 00:04:09 End 2024.04.25 @ 00:06:16 Sessions 1 Manual Loads 0 Difficulty Rogue Special Mode None Game No. 85 Rogue 84 Adventurer 1 Explorer 0 Win Type - Total 2 Types 2/0/0/0/0/0/0/0/0 Lore% 27 Gallery% 52 Achievement% 43 Wizard Run 0 Options --------- Layout 0 ASCII 0 Keyboard 0 Movement Mouse Keybinds 0 Fullscreen 1 Font 18/SmallcapsGlow Map View 76x50 Zoom Use 0% Tactical HUD 1 Map Filters NONE Filters NONE Steam 1 RUN: ebc23557-7ded-435a-b2db-717399f32484